bitfinex/quotes_ETHUSD_20241207
["timestamp","ask_amount","ask_price","bid_price","bid_amount"]
[1733599457112,1.04309056,4018.3,4017.7,0.02226991]
[1733599457313,2.153073,4018.2,4017.7,0.02226991]
[1733599457514,1.04309056,4018.3,4017.7,0.02226991]
[1733599457814,2.15306864,4018.2,4017.7,0.02226991]
[1733599458010,2.15316036,4018.1,4017.7,0.02226991]
[1733599458220,0.8612911,4018.0,4017.7,0.02226991]
[1733599458426,1.04309056,4018.1,4017.4,0.7999]
[1733599458741,2.54869,4018.4,4017.4,0.7999]
[1733599458742,0.86130613,4018.0,4017.4,0.7999]
[1733599459040,1.04309056,4018.2,4017.4,0.7999]
[1733599459243,2.15332353,4018.1,4017.4,0.7999]
[1733599459412,1.04309056,4018.2,4017.4,0.7999]
[1733599459619,2.15330823,4018.1,4017.4,0.7999]
[1733599459812,0.86133041,4018.0,4017.4,0.7999]
[1733599460140,1.04309056,4018.2,4017.4,0.7999]
[1733599460357,2.1534271,4018.1,4017.4,0.7999]
[1733599460504,1.04309056,4018.2,4017.4,0.7999]
[1733599460705,2.15344401,4018.1,4017.4,0.7999]
[1733599460914,1.04309056,4018.2,4017.4,0.7999]
[1733599461128,2.15344785,4018.1,4017.4,0.7999]
[1733599461324,1.04309056,4018.2,4017.4,0.7999]
[1733599461529,0.86144221,4018.1,4017.4,0.7999]
[1733599461741,1.04309056,4018.2,4017.4,0.7999]
[1733599461917,2.15359355,4018.1,4017.4,0.7999]
[1733599462113,1.04309056,4018.2,4017.4,0.7999]
[1733599462418,2.15378792,4018.1,4017.4,0.7999]
[1733599462643,1.04309056,4018.2,4017.4,0.7999]
[1733599462840,0.86152356,4018.1,4017.4,0.7999]
[1733599463115,1.04309056,4018.2,4017.4,0.7999]
[1733599463428,2.15400983,4018.1,4017.4,0.7999]
[1733599463629,1.04309056,4018.2,4017.4,0.7999]
[1733599463831,2.15405375,4018.1,4017.4,0.7999]
[1733599464135,0.86162573,4018.0,4017.4,0.7999]
[1733599464344,1.04309056,4018.2,4017.4,0.7999]
[1733599464649,2.1543683,4018.1,4017.4,0.7999]
[1733599464817,0.86174073,4018.0,4017.4,0.7999]
[1733599465018,1.04309056,4018.2,4017.4,0.7999]
[1733599465256,2.15435115,4018.1,4017.4,0.7999]
[1733599465461,0.86174046,4018.0,4017.4,0.7999]
[1733599465760,1.04309056,4018.2,4017.4,0.7999]
[1733599465925,2.1546855,4018.1,4017.4,0.7999]
[1733599466116,0.8618742,4018.0,4017.4,0.7999]
[1733599466316,1.04309056,4018.1,4017.4,0.7999]
[1733599466633,3.19812714,4018.0,4017.5,0.02226991]
[1733599466826,2.15506682,4017.9,4017.5,0.02226991]
[1733599467027,1.62261463,4017.8,4017.3,1.07028452]
[1733599467340,0.7606,4017.8,4017.4,0.02231374]
[1733599467546,0.86217008,4017.7,4017.4,0.02231374]
[1733599467843,0.7606,4017.8,4017.5,0.02231374]
[1733599468030,0.7606,4017.8,4017.1,0.7653]
[1733599468357,0.86229429,4017.7,4017.2,0.02231374]
[1733599468569,1.80369056,4017.8,4017.2,0.02231374]
[1733599468717,0.86230106,4017.7,4017.2,0.02231374]
[1733599468917,1.80369056,4017.8,4017.1,0.7653]
[1733599469140,2.15597391,4017.7,4017.3,0.02231374]
[1733599469330,1.80369056,4017.8,4017.1,0.7653]
[1733599469657,2.15610226,4017.7,4017.1,0.7653]
[1733599469950,1.80369056,4017.8,4017.2,0.02231374]
[1733599470153,2.15609923,4017.7,4017.2,0.02231374]
[1733599470454,0.86243969,4017.6,4017.1,0.7653]
[1733599470654,1.80369056,4017.8,4017.1,0.7653]
[1733599470853,2.15660902,4017.7,4017.2,0.02231374]
[1733599471056,0.86264361,4017.6,4017.3,1.07028452]
[1733599471217,1.04309056,4017.7,4017.3,1.07028452]
[1733599471412,0.86277243,4017.6,4017.3,1.07028452]
[1733599471651,1.04309056,4017.7,4017.3,1.07028452]
[1733599471852,2.15694128,4017.6,4017.3,1.07028452]
[1733599472055,1.04309056,4017.7,4017.3,1.07028452]
[1733599472358,2.15702203,4017.6,4017.3,1.07028452]
[1733599472564,0.86280881,4017.5,4017.3,1.07028452]
[1733599472730,1.04309056,4017.6,4017.3,1.07028452]
[1733599473060,0.86279492,4017.5,4017.4,0.02231374]
[1733599474218,1.04309056,4017.8,4017.4,1.00318983]
[1733599474422,1.04309056,4017.9,4017.6,1.07028452]
[1733599474666,2.15693033,4017.8,4017.6,1.07028452]
[1733599474822,1.04309056,4017.9,4017.6,1.07028452]
[1733599475016,0.8627694,4017.8,4017.7,0.02231374]
[1733599475644,2.1570112,4017.8,4017.7,0.02231374]
[1733599476164,2.15710176,4017.8,4017.7,0.02231374]
[1733599476457,0.8627694,4017.8,4017.7,0.02231374]
[1733599477015,0.8627694,4017.8,4017.7,1.19603355]
[1733599477456,0.86295019,4017.8,4017.7,1.19603355]
[1733599478566,1.04309056,4018.3,4018.0,0.7899]
[1733599478716,0.86291421,4018.2,4018.1,1.07028452]
[1733599478920,0.86291421,4018.2,4018.1,1.09259341]
[1733599480246,2.15733346,4018.2,4018.1,1.09259341]
[1733599480455,0.86291421,4018.2,4018.1,1.09259341]
[1733599481668,0.86279724,4018.2,4018.1,1.09259341]
[1733599482125,1.04309056,4018.4,4018.1,1.09259341]
[1733599482327,2.1569819,4018.3,4018.1,1.09259341]
[1733599482533,1.04309056,4018.4,4018.1,1.09259341]
[1733599482741,3.19990704,4018.3,4018.1,1.09259341]
[1733599482961,0.86272659,4018.2,4018.1,1.09259341]
[1733599484575,0.86272659,4018.2,4018.1,1.45505375]
[1733599485268,1.04309056,4018.4,4018.3,1.74203]
[1733599485471,1.56463585,4018.6,4018.3,0.55]
[1733599485472,1.04309056,4018.6,4018.3,0.55]
[1733599485637,0.86260243,4018.5,4018.4,2.56398]
[1733599485834,0.86260243,4018.5,4018.4,2.58628889]
[1733599486047,0.86260243,4018.5,4018.4,3.07412878]
[1733599486570,3.0,4020.3,4018.4,3.07412878]
[1733599486749,1.74147,4019.6,4018.6,1.07028452]
[1733599487183,1.04304931,4018.7,4018.6,1.07028452]
[1733599487337,3.19928339,4018.7,4018.6,1.07028452]
[1733599488480,2.15623408,4018.7,4018.2,0.55]
[1733599488642,3.19908488,4018.6,4018.2,0.55]
[1733599488980,3.19882242,4018.5,4018.1,0.7526]
[1733599489136,0.86249363,4018.4,4017.4,0.7526]
[1733599489342,1.0428508,4018.2,4017.4,0.7526]
[1733599489560,0.8623125,4018.1,4017.8,1.07028452]
[1733599489763,1.0428508,4018.2,4017.8,1.07028452]
[1733599490084,0.86236078,4018.1,4017.8,1.07028452]
[1733599490382,1.0428508,4018.3,4017.8,1.07028452]
[1733599490563,3.19874333,4018.2,4017.8,1.07028452]
[1733599490743,0.86235701,4018.1,4017.8,1.07028452]
[1733599490941,1.0428508,4018.2,4017.8,1.07028452]
[1733599491142,0.86235874,4018.1,4017.8,1.07028452]
[1733599491439,0.86240429,4018.0,4017.8,1.07028452]
[1733599491642,1.0428508,4018.1,4017.8,1.07028452]
[1733599491848,0.86242023,4018.0,4017.8,1.07028452]
[1733599492053,1.0428508,4018.2,4017.8,1.07028452]
[1733599492381,2.15597703,4018.1,4017.8,1.07028452]
[1733599492541,0.86239081,4018.0,4017.8,1.07028452]
[1733599492742,1.0428508,4018.2,4017.8,1.07028452]
[1733599493067,3.1988729,4018.1,4017.8,1.07028452]
[1733599493248,0.86240884,4018.0,4017.8,1.07028452]
[1733599493447,1.0428508,4018.2,4017.8,1.07028452]
[1733599493657,2.15605322,4018.1,4017.8,1.07028452]
[1733599493859,0.86242129,4018.0,4017.8,1.07028452]
[1733599494186,1.0428508,4018.1,4017.8,1.07028452]
[1733599494352,2.15610467,4018.0,4017.8,1.07028452]
[1733599494677,0.86244008,4017.9,4017.8,1.07028452]
[1733599495076,2.15613975,4017.9,4017.8,1.07028452]
[1733599495413,0.86244008,4017.9,4017.8,1.07028452]
[1733599495714,0.86247462,4017.9,4017.8,1.07028452]
[1733599497389,0.86247523,4017.9,4017.8,1.07028452]
[1733599499018,0.86247523,4017.9,4017.5,1.07028452]
[1733599499189,1.0428508,4018.0,4017.5,1.07028452]
[1733599499517,2.15636927,4017.9,4017.4,0.7526]
[1733599499690,2.15636927,4017.9,4017.2,1.07028452]
[1733599499691,3.19922007,4017.8,4017.2,1.07028452]
[1733599499879,2.15644552,4017.7,4017.2,1.07028452]
[1733599500079,1.0428508,4017.8,4017.2,1.07028452]
[1733599500282,2.15650991,4017.7,4017.2,1.07028452]
[1733599500476,0.86258404,4017.6,4017.2,1.07028452]
[1733599500677,1.0428508,4017.8,4017.2,1.07028452]
[1733599500877,2.15646941,4017.7,4017.2,1.07028452]
[1733599501115,1.0428508,4017.8,4017.2,1.07028452]
[1733599501291,0.86259377,4017.7,4017.2,1.07028452]
[1733599501492,1.0428508,4017.8,4017.2,1.07028452]
[1733599501692,2.15646488,4017.7,4017.2,1.07028452]
[1733599501917,1.0428508,4017.8,4017.2,1.07028452]
[1733599502212,0.86257156,4017.7,4017.2,1.07028452]
[1733599502447,0.86257735,4017.6,4017.2,1.07028452]
[1733599502599,1.0428508,4017.8,4017.2,1.07028452]
[1733599502804,2.1564445,4017.7,4017.2,1.07028452]
[1733599503005,0.8625778,4017.6,4017.2,1.07028452]
[1733599503206,1.0428508,4017.8,4017.2,1.07028452]
[1733599503405,2.15640282,4017.7,4017.2,1.07028452]
[1733599503641,0.86256113,4017.6,4017.2,1.07028452]
[1733599503951,1.0428508,4017.7,4017.2,1.07028452]
[1733599504116,0.86255431,4017.6,4017.2,1.07028452]
[1733599504309,1.0428508,4017.7,4017.2,1.07028452]
[1733599504512,0.8625406,4017.6,4017.2,1.07028452]
[1733599504806,0.86252759,4017.5,4017.2,1.07028452]
[1733599505028,1.0428508,4017.7,4017.2,1.07028452]
[1733599505337,0.86252889,4017.6,4017.2,1.07028452]
[1733599505533,1.0428508,4017.7,4017.2,1.07028452]
[1733599505749,0.86249628,4017.6,4017.2,1.07028452]
[1733599505953,1.0428508,4017.8,4017.2,1.07028452]
[1733599506263,3.1990954,4017.7,4017.2,1.07028452]
[1733599506423,2.15623914,4017.6,4017.2,1.07028452]
[1733599506759,1.0428508,4017.7,4017.2,1.07028452]
[1733599506957,0.86247312,4017.6,4017.2,1.07028452]
[1733599507167,1.0428508,4017.7,4017.2,1.07028452]
[1733599507330,0.8624759,4017.6,4017.2,1.07028452]
[1733599507521,1.0428508,4017.8,4017.2,1.07028452]
[1733599507722,2.15609176,4017.7,4017.2,1.07028452]
[1733599507978,0.8624367,4017.6,4017.2,1.07028452]
[1733599508147,1.0428508,4017.8,4017.2,1.07028452]
[1733599508351,2.15609973,4017.7,4017.2,1.07028452]
[1733599508547,0.86243989,4017.6,4017.2,1.07028452]
[1733599508752,1.0428508,4017.8,4017.2,1.07028452]
[1733599509063,2.15601985,4017.7,4017.2,1.07028452]
[1733599509667,0.86240794,4017.7,4017.2,1.07028452]
[1733599509969,0.86240794,4017.6,4017.2,1.07028452]
[1733599510174,0.86240794,4017.6,4017.5,1.07028452]
[1733599511643,0.86240794,4017.6,4017.2,1.07028452]
[1733599512343,1.8552508,4017.7,4017.2,1.07028452]
[1733599516584,0.8124,4017.7,4017.2,1.07028452]
[1733599516880,1.74217,4018.0,4017.2,1.07028452]
[1733599517055,2.55457,4018.0,4017.3,0.8066]
[1733599517254,0.8124,4018.0,4017.3,0.8066]
[1733599517570,0.8124,4018.0,4017.5,1.07028452]
[1733599517776,0.8124,4018.0,4017.4,1.07028452]
[1733599519058,2.55457,4018.0,4017.0,0.8066]
[1733599519259,2.55457,4018.0,4017.1,1.07028452]
[1733599520171,2.55457,4018.0,4017.2,1.07028452]
[1733599520886,2.55457,4018.0,4017.0,0.8066]
[1733599520887,1.74222,4017.9,4017.0,0.8066]
[1733599521042,1.74222,4017.9,4017.2,1.07028452]
[1733599521247,2.15587233,4017.8,4017.2,1.07028452]
[1733599521447,2.15584383,4017.7,4017.2,1.07028452]
[1733599521750,1.04290121,4017.8,4017.2,1.07028452]
[1733599521948,2.1557985,4017.7,4017.2,1.07028452]
[1733599522260,1.04290121,4017.8,4017.2,1.07028452]
[1733599522474,2.15573448,4017.7,4017.2,1.07028452]
[1733599522678,0.86229379,4017.6,4017.2,1.07028452]
[1733599522847,1.04290121,4017.8,4017.2,1.07028452]
[1733599523044,2.15570458,4017.7,4017.2,1.07028452]
[1733599523272,1.04290121,4017.8,4017.2,1.07028452]
[1733599523472,2.15563116,4017.7,4017.2,1.07028452]
[1733599523784,2.78515121,4017.8,4017.2,1.07028452]
[1733599523954,2.15562593,4017.7,4017.2,1.07028452]
[1733599524154,2.78515121,4017.8,4017.2,1.07028452]
[1733599524354,2.15562593,4017.7,4017.2,1.07028452]
[1733599524564,2.78515121,4017.8,4017.2,1.07028452]
[1733599524751,0.86221308,4017.7,4017.2,1.07028452]
[1733599524951,2.78515121,4017.8,4017.2,1.07028452]
[1733599525185,0.862208,4017.7,4017.2,1.07028452]
[1733599525389,2.78515121,4017.8,4017.2,1.07028452]
[1733599525571,2.1555482,4017.7,4017.2,1.07028452]
[1733599525776,2.78515121,4017.8,4017.3,0.55]
[1733599526087,2.1555438,4017.7,4017.3,0.55]
[1733599526399,2.78515121,4017.8,4017.3,0.55]
[1733599526580,2.15555223,4017.7,4017.3,0.55]
[1733599526752,1.04290121,4017.8,4017.1,0.55]
[1733599526951,1.74237,4017.5,4016.8,0.55]
[1733599527983,3.55759121,4017.7,4016.8,0.55]
[1733599528185,0.86227834,4017.6,4017.0,0.55]
[1733599528348,3.55759121,4017.7,4017.0,0.55]
[1733599528549,0.86230418,4017.6,4017.0,0.55]
[1733599528754,3.55759121,4017.7,4017.0,0.55]
[1733599528978,0.86229908,4017.6,4017.0,0.55]
[1733599529161,3.55759121,4017.7,4017.0,0.55]
[1733599529367,2.15579181,4017.6,4017.0,0.55]
[1733599529569,3.55759121,4017.7,4017.0,0.55]
[1733599529772,0.86232597,4017.6,4017.0,0.55]
[1733599529956,3.55759121,4017.7,4017.0,0.55]
[1733599530295,2.15580401,4017.6,4017.2,1.07028452]
[1733599530452,1.81530121,4017.7,4017.3,0.55]
[1733599530653,2.15587921,4017.6,4017.3,0.55]
[1733599530895,0.86235168,4017.5,4017.3,0.55]
[1733599531206,3.55760121,4017.7,4017.2,1.07028452]
[1733599531379,2.15604752,4017.6,4017.3,0.55]
[1733599531566,0.86241901,4017.5,4016.7,0.8162]
[1733599531768,1.04290121,4017.2,4016.4,0.8162]
[1733599531969,4.49284751,4017.4,4016.4,0.8162]
[1733599531970,3.19899691,4017.1,4016.6,1.07028452]
[1733599532184,0.86243828,4017.0,4016.6,1.07028452]
[1733599532385,0.86269593,4016.9,4016.6,1.07028452]
[1733599532566,1.04290121,4017.1,4016.6,1.07028452]
[1733599532903,0.8625289,4017.0,4016.6,1.07028452]
[1733599533070,2.78541121,4017.2,4016.7,0.55]
[1733599533398,3.19922114,4017.1,4016.7,0.55]
[1733599533552,2.15631993,4017.0,4016.7,0.55]
[1733599533756,1.04290121,4017.1,4016.7,0.55]
[1733599534084,0.86253582,4017.0,4016.7,0.55]
[1733599534255,1.04290121,4017.1,4016.7,0.55]
[1733599534455,2.1568,4017.0,4016.7,0.55]
[1733599534655,2.78541121,4017.2,4016.7,0.55]
[1733599534857,2.15642926,4017.1,4016.7,0.55]
[1733599535057,1.04290121,4017.2,4016.7,0.55]
[1733599535291,2.15639863,4017.1,4016.7,0.55]
[1733599535595,0.86255945,4017.0,4016.7,0.55]
[1733599535763,1.04290121,4017.1,4016.7,0.55]
[1733599536306,0.86263086,4017.0,4016.7,0.55]
[1733599536611,1.04290121,4017.1,4016.7,0.55]
[1733599536762,0.86256821,4017.0,4016.7,0.55]
[1733599536962,1.04290121,4017.1,4016.7,0.55]
[1733599537178,0.86257084,4017.0,4016.7,0.55]
[1733599537376,1.04290121,4017.1,4016.7,0.55]
[1733599537668,2.15657485,4017.0,4016.7,0.55]
[1733599537874,1.04290121,4017.1,4016.7,0.55]
[1733599538073,0.86250932,4017.0,4016.7,0.55]
[1733599538277,1.04290121,4017.2,4016.7,0.55]
[1733599538610,0.86251568,4017.1,4016.7,0.55]
[1733599538899,1.04290121,4017.2,4016.7,0.55]
[1733599539098,2.15618205,4017.1,4016.7,0.55]
[1733599539312,1.04290121,4017.2,4016.7,0.55]
[1733599539455,0.86251549,4017.1,4016.7,0.55]
[1733599539659,1.04290121,4017.2,4016.7,0.55]
[1733599539901,0.86247139,4017.1,4016.7,0.55]
[1733599540137,1.04290121,4017.2,4016.7,0.55]
[1733599540418,0.86246705,4017.1,4016.7,0.55]
[1733599540712,1.04290121,4017.3,4016.9,1.07028452]
[1733599540919,0.7724,4017.4,4016.7,0.79364845]
[1733599540920,0.86248376,4017.2,4017.0,0.55]
[1733599541133,2.73351299,4017.6,4016.8,0.8162]
[1733599541134,1.04290121,4017.5,4017.3,0.55]
[1733599541315,2.21206239,4017.6,4017.3,0.55]
[1733599541476,0.86240153,4017.5,4017.3,0.55]
[1733599541685,0.86240153,4017.4,4017.3,0.55]
[1733599542021,2.21206239,4017.6,4017.3,0.55]
[1733599542203,2.15610529,4017.5,4017.3,0.55]
[1733599542414,0.86246961,4017.4,4017.3,0.55]
[1733599542825,2.21206239,4017.6,4017.3,0.55]
[1733599543128,2.15621318,4017.5,4017.3,0.55]
[1733599543289,0.86249321,4017.4,4017.3,0.55]
[1733599544918,2.21206239,4017.6,4017.3,0.55]
[1733599545117,2.15653096,4017.5,4017.3,0.55]
[1733599545321,0.86261238,4017.4,4017.3,0.55]
[1733599547242,2.21206239,4017.6,4017.3,0.55]
[1733599547400,2.15675372,4017.5,4017.3,0.55]
[1733599547621,0.86270149,4017.4,4017.3,0.55]
[1733599547826,2.21206239,4017.6,4017.3,0.55]
[1733599548011,2.15680235,4017.5,4017.3,0.55]
[1733599548343,2.21206239,4017.6,4017.3,1.341]
[1733599548550,2.15681529,4017.5,4017.3,1.341]
[1733599548723,0.86272211,4017.4,4017.3,1.341]
[1733599548908,2.21206239,4017.6,4017.3,1.341]
[1733599549110,2.15684746,4017.5,4017.3,1.341]
[1733599549446,2.21206239,4017.6,4017.3,1.341]
[1733599549632,0.86274692,4017.5,4017.3,1.341]
[1733599549832,2.21206239,4017.6,4017.5,1.62028452]
[1733599550047,4.3689236,4017.6,4017.5,1.62028452]
[1733599550717,3.32602239,4017.6,4017.5,1.62028452]
[1733599551049,4.3689236,4017.6,4017.5,1.62028452]
[1733599551544,3.32602239,4017.6,4017.5,1.62028452]
[1733599551710,4.3689236,4017.6,4017.5,1.62028452]
[1733599552144,3.32602239,4017.6,4017.5,1.62028452]
[1733599552759,2.03190566,4017.6,4017.5,1.62028452]
[1733599554929,3.32593751,4017.6,4017.5,1.62028452]
[1733599555153,2.03190566,4017.6,4017.5,1.62028452]
[1733599557979,2.03183178,4017.6,4017.5,1.62028452]
[1733599558349,1.16916118,4017.6,4017.5,1.62028452]
[1733599565907,1.16916118,4017.6,4017.5,3.36265452]
[1733599567011,1.16916118,4017.6,4017.5,1.62028452]
[1733599568008,1.16916118,4017.6,4017.5,3.36265452]
[1733599568507,1.16916118,4017.6,4017.5,1.62028452]
[1733599568900,1.16916118,4017.6,4017.5,3.36265452]
[1733599571528,1.16916118,4017.6,4017.5,4.67655602]
[1733599572988,1.16916118,4017.6,4017.5,4.16355452]
[1733599573187,1.16916118,4017.6,4017.5,3.36265452]
[1733599576547,1.16916118,4017.6,4017.5,4.12095452]
[1733599577998,1.29330391,4018.1,4017.6,0.55]
[1733599578203,1.79290121,4018.2,4018.1,1.74211]
[1733599578399,3.94832991,4018.2,4018.1,1.74211]
[1733599578823,2.9054287,4018.2,4018.1,1.74211]
[1733599579295,2.1554287,4018.2,4018.1,1.74211]
[1733599580528,3.19832991,4018.2,4018.1,2.29211]
[1733599581009,2.1554287,4018.2,4018.1,2.29211]
[1733599581210,1.04290121,4018.5,4018.2,0.55]
[1733599581415,1.04290121,4018.5,4018.4,3.36226452]
[1733599581742,1.04290121,4018.7,4018.6,1.7419]
[1733599582040,1.56435181,4018.9,4018.6,1.7419]
[1733599582041,1.04290121,4018.9,4018.7,0.55]
[1733599582343,1.04290121,4019.0,4018.9,2.29177]
[1733599582643,3.19754429,4019.0,4018.9,2.29177]
[1733599583145,1.04290121,4019.0,4018.9,2.29177]
[1733599583438,2.15483005,4019.0,4018.9,2.29177]
[1733599583597,0.8254,4018.9,4018.6,1.7419]
[1733599583797,3.71918186,4018.8,4018.5,0.55]
[1733599584009,1.04237132,4018.6,4018.5,0.55]
[1733599584238,3.19720137,4018.6,4018.5,0.55]
[1733599584706,2.15483005,4018.6,4018.5,0.55]
[1733599585920,3.71918186,4018.6,4018.5,0.55]
[1733599588231,3.71952179,4018.6,4018.5,0.55]
[1733599588832,2.15516998,4018.6,4018.5,0.55]
[1733599589830,3.71952179,4018.6,4018.5,0.55]
[1733599590031,3.87931833,4018.6,4018.5,0.55]
[1733599591061,2.15516998,4018.6,4018.5,0.55]
[1733599591622,3.71912229,4018.6,4018.5,0.55]
[1733599592634,3.87943328,4018.6,4018.5,0.55]
[1733599593163,3.87961602,4018.6,4018.5,0.55]
[1733599595025,5.96541844,4018.6,4018.5,0.55]
[1733599595459,3.87961602,4018.6,4018.5,0.55]
[1733599596268,5.96541844,4018.6,4018.5,0.55]
[1733599596478,3.87961602,4018.6,4018.5,0.55]
[1733599597075,5.96532353,4018.6,4018.5,0.55]
[1733599597772,3.87961602,4018.6,4018.5,0.55]
[1733599598272,5.96581092,4018.6,4018.5,0.55]
[1733599599151,3.88010341,4018.6,4018.5,0.55]
[1733599599482,5.96607483,4018.6,4018.5,0.55]
[1733599600677,0.8001,4018.5,4017.8,0.55]
[1733599600852,1.56458557,4018.3,4018.1,0.55]
[1733599601037,3.72042568,4018.2,4018.1,0.55]
[1733599602556,3.72042568,4018.2,4017.0,0.7999]
[1733599602741,1.04315712,4017.8,4017.5,1.07028452]
[1733599602936,2.15645458,4017.7,4017.5,1.07028452]
[1733599603238,0.86258183,4017.6,4017.5,1.07028452]
[1733599603984,0.86258183,4017.6,4017.5,1.62028452]
[1733599604190,0.86258183,4017.6,4017.3,0.55]
[1733599604363,1.04315712,4017.7,4017.6,0.55]
[1733599604558,3.72117311,4017.7,4017.6,0.55]
[1733599605208,2.15643743,4017.7,4017.6,0.55]
[1733599607995,3.7208343,4017.7,4017.6,0.55]
[1733599608201,3.7208343,4017.7,4017.3,0.55]
[1733599608364,1.04292217,4017.5,4017.3,0.55]
[1733599608564,2.15609862,4017.4,4017.3,0.55]
[1733599608863,2.15609862,4017.4,4017.0,1.07028452]
[1733599608864,3.19902079,4017.4,4017.0,1.07028452]
[1733599609078,1.04297171,4017.2,4017.0,1.07028452]
[1733599609264,0.86243945,4017.1,4017.0,1.07028452]
[1733599609465,2.15583321,4017.1,4017.0,1.07028452]
[1733599610392,2.15583321,4017.1,4017.0,1.62028452]
[1733599611259,0.86243945,4017.1,4017.0,1.62028452]
[1733599611686,3.19824009,4017.1,4017.0,1.62028452]
[1733599612813,1.04297171,4017.1,4017.0,1.62028452]
[1733599613027,3.19725466,4017.1,4017.0,1.62028452]
[1733599613191,2.15428295,4017.1,4017.0,1.62028452]
[1733599613607,0.86171318,4017.1,4017.0,1.62028452]
[1733599614091,1.04297171,4017.3,4017.1,0.55]
[1733599614299,0.86134461,4017.2,4017.1,0.55]
[1733599614484,0.86134461,4017.2,4017.1,1.62028452]
[1733599615520,1.04297171,4017.4,4017.1,1.62028452]
[1733599615724,2.15300392,4017.3,4017.1,1.62028452]
[1733599616019,0.86120483,4017.2,4017.1,1.62028452]
[1733599616224,1.04297171,4017.4,4017.1,1.62028452]
[1733599616426,2.15274487,4017.3,4017.1,1.62028452]
[1733599616717,1.04297171,4017.4,4017.1,1.62028452]
[1733599616916,2.15273508,4017.3,4017.1,1.62028452]
[1733599617116,1.04297171,4017.4,4017.1,1.62028452]
[1733599617324,0.86098856,4017.3,4017.1,1.62028452]
[1733599617482,1.04297171,4017.5,4017.1,1.62028452]
[1733599617687,0.86097779,4017.4,4017.1,1.62028452]
[1733599617891,1.04297171,4017.5,4017.1,1.62028452]
[1733599618200,0.86097502,4017.4,4017.1,1.62028452]
[1733599618383,1.04297171,4017.5,4017.1,1.62028452]
[1733599618584,2.1522559,4017.4,4017.1,1.62028452]
[1733599618823,1.04297171,4017.5,4017.1,1.62028452]
[1733599619122,0.86090078,4017.4,4017.1,1.62028452]
[1733599619324,1.04297171,4017.6,4017.1,1.62028452]
[1733599619489,2.15203255,4017.5,4017.1,1.62028452]
[1733599619818,0.86081302,4017.4,4017.1,1.62028452]
[1733599620026,1.04297171,4017.6,4017.1,1.62028452]
[1733599620181,2.15206,4017.5,4017.1,1.62028452]
[1733599620382,0.860824,4017.4,4017.1,1.62028452]
[1733599620602,1.04297171,4017.6,4017.1,1.62028452]
[1733599620802,3.19492442,4017.5,4017.1,1.62028452]
[1733599621018,0.86078108,4017.4,4017.1,1.62028452]
[1733599621204,1.04297171,4017.6,4017.1,1.62028452]
[1733599621205,1.2910902,4017.5,4017.1,1.62028452]
[1733599621406,0.86072972,4017.4,4017.1,1.62028452]
[1733599621594,1.29109533,4017.5,4017.1,1.62028452]
[1733599621919,0.86070515,4017.4,4017.1,1.62028452]
[1733599622084,1.29105291,4017.5,4017.1,1.62028452]
[1733599622279,1.04297171,4017.6,4017.1,1.62028452]
[1733599622483,2.15166523,4017.5,4017.1,1.62028452]
[1733599622683,0.86066609,4017.4,4017.1,1.62028452]
[1733599622883,1.29096687,4017.5,4017.1,1.62028452]
[1733599623118,1.04297171,4017.6,4017.1,1.62028452]
[1733599623325,0.8606121,4017.5,4017.1,1.62028452]
[1733599623481,1.04297171,4017.6,4017.1,1.62028452]
[1733599623825,0.86059958,4017.5,4017.1,1.62028452]
[1733599624029,1.04297171,4017.6,4017.1,1.62028452]
[1733599624336,0.86059398,4017.5,4017.1,1.62028452]
[1733599624497,1.04297171,4017.7,4017.1,1.62028452]
[1733599624700,3.19437214,4017.6,4017.1,1.62028452]
[1733599624908,2.15141883,4017.5,4017.1,1.62028452]
[1733599625134,0.86057394,4017.4,4017.1,1.62028452]
[1733599625424,1.29082375,4017.5,4017.1,1.62028452]
[1733599625583,1.04297171,4017.6,4017.1,1.62028452]
[1733599625784,0.86053543,4017.5,4017.1,1.62028452]
[1733599625984,1.04297171,4017.6,4017.1,1.62028452]
[1733599626227,2.15128948,4017.5,4017.1,1.62028452]
[1733599626424,0.86051579,4017.4,4017.1,1.62028452]
[1733599626723,2.3337517,4017.5,4017.1,1.62028452]
[1733599627025,0.86050816,4017.4,4017.1,1.62028452]
[1733599627190,2.33374439,4017.6,4017.1,1.62028452]
[1733599627388,0.86050201,4017.5,4017.1,1.62028452]
[1733599627590,1.04297171,4017.6,4017.1,1.62028452]
[1733599627825,0.8604925,4017.5,4017.1,1.62028452]
[1733599628125,2.33371046,4017.6,4017.1,1.62028452]
[1733599628423,2.15155156,4017.5,4017.1,1.62028452]
[1733599628622,0.86063952,4017.4,4017.1,1.62028452]
[1733599628832,1.29095928,4017.5,4017.1,1.62028452]
[1733599629130,0.86064052,4017.4,4017.1,1.62028452]
[1733599629429,1.29119767,4017.5,4017.1,1.62028452]
[1733599629589,0.8608021,4017.4,4017.1,1.62028452]
[1733599629903,1.04297171,4017.5,4017.1,1.62028452]
[1733599630104,0.86080125,4017.4,4017.1,1.62028452]
[1733599630295,1.04297171,4017.5,4017.1,1.62028452]
[1733599630502,0.86085044,4017.4,4017.1,1.62028452]
[1733599630725,1.04297171,4017.5,4017.1,1.62028452]
[1733599630924,0.86085865,4017.4,4017.1,1.62028452]
[1733599631089,1.04297171,4017.5,4017.1,1.62028452]
[1733599631290,2.15225075,4017.4,4017.1,1.62028452]
[1733599631536,1.04297171,4017.5,4017.1,1.62028452]
[1733599631698,2.15227176,4017.4,4017.1,1.62028452]
[1733599631894,1.04297171,4017.5,4017.1,1.62028452]
[1733599632191,2.1522722,4017.4,4017.1,1.62028452]
[1733599632393,1.04297171,4017.5,4017.1,1.62028452]
[1733599632600,2.15236316,4017.4,4017.1,1.62028452]
[1733599632909,1.04297171,4017.5,4017.1,1.62028452]
[1733599633228,2.15238318,4017.4,4017.1,1.62028452]
[1733599633395,0.86095327,4017.3,4017.1,1.62028452]
[1733599633591,1.04297171,4017.5,4017.1,1.62028452]
[1733599633787,2.15254443,4017.4,4017.1,1.62028452]
[1733599633995,0.86101777,4017.3,4017.1,1.62028452]
[1733599634291,1.04297171,4017.4,4017.1,1.62028452]
[1733599634525,0.86108304,4017.3,4017.1,1.62028452]
[1733599634730,1.04297171,4017.5,4017.1,1.62028452]
[1733599634892,3.19570017,4017.4,4017.1,1.62028452]
[1733599635096,2.15285484,4017.3,4017.1,1.62028452]
[1733599635316,1.04297171,4017.4,4017.1,1.62028452]
[1733599635589,2.15293933,4017.3,4017.1,1.62028452]
[1733599635795,1.04297171,4017.4,4017.1,1.62028452]
[1733599636209,2.152969,4017.3,4017.1,1.62028452]
[1733599636437,0.8611876,4017.2,4017.1,1.62028452]